Workbook

Sheet FÜRDŐSZOBA-FELÚJÍTÁSI KÖLTSÉGEK
B1: Fürdőszoba-felújítási költség kiszámítása
B2: MEGJEGYZÉS: A táblázat különböző oszlopaiban látható, ha a tényleges összeg túllépi a becsült költséget. A piros számok a becsült értéket meghaladó (negatív), a fekete számok az érték alatti költséget jelenítik meg.
E3: Részletezett költség (Ft) | H3: Teljes költség (Ft)
B4: Terület | C4: Tételek | D4: Mennyiség | E4: Becsült | F4: Tényleges | G4: Különbség | H4: Becsült | I4: Tényleges | J4: Különbség
B5: Kád/zuhanykabin | C5: Kád, öntöttvas, 150 cm, normál kivitelű | D5: 1 | E5: 250.00 Ft | F5: =RANDBETWEEN(E5+2,E5+20) -> 259.00 Ft | G5: =IFERROR(Költség[[#This Row],[Becsült]]-Költség[[#This Row],[Tényleges]], "") -> -9.00 Ft | H5: =IFERROR(Költség[[#This Row],[Mennyiség]]*Költség[[#This Row],[Becsült]], "") -> 250.00 Ft | I5: =IFERROR(Költség[[#This Row],[Mennyiség]]*Költség[[#This Row],[Tényleges]], "") -> 259.00 Ft | J5: =IFERROR(Költség[[#This Row],[Becsült ]]-Költség[[#This Row],[Tényleges ]], "") -> -9.00 Ft
B6: Kád/zuhanykabin | C6: Zuhanyajtók, zsanéros, normál kivitelű | D6: 1 | E6: 200.00 Ft | F6: 219.00 Ft | G6: =IFERROR(Költség[[#This Row],[Becsült]]-Költség[[#This Row],[Tényleges]], "") -> -19.00 Ft | H6: =IFERROR(Költség[[#This Row],[Mennyiség]]*Költség[[#This Row],[Becsült]], "") -> 200.00 Ft | I6: =IFERROR(Költség[[#This Row],[Mennyiség]]*Költség[[#This Row],[Tényleges]], "") -> 219.00 Ft | J6: =IFERROR(Költség[[#This Row],[Becsült ]]-Költség[[#This Row],[Tényleges ]], "") -> -19.00 Ft
B7: Kád/zuhanykabin | C7: Zuhanyfej, normál kivitelű | D7: 1 | E7: 50.00 Ft | F7: 67.00 Ft | G7: =IFERROR(Költség[[#This Row],[Becsült]]-Költség[[#This Row],[Tényleges]], "") -> -17.00 Ft | H7: =IFERROR(Költség[[#This Row],[Mennyiség]]*Költség[[#This Row],[Becsült]], "") -> 50.00 Ft | I7: =IFERROR(Költség[[#This Row],[Mennyiség]]*Költség[[#This Row],[Tényleges]], "") -> 67.00 Ft | J7: =IFERROR(Költség[[#This Row],[Becsült ]]-Költség[[#This Row],[Tényleges ]], "") -> -17.00 Ft
B8: Kád/zuhanykabin | C8: Kád fali panel, normál kivitelű | D8: 1 | E8: 200.00 Ft | F8: 219.00 Ft | G8: =IFERROR(Költség[[#This Row],[Becsült]]-Költség[[#This Row],[Tényleges]], "") -> -19.00 Ft | H8: =IFERROR(Költség[[#This Row],[Mennyiség]]*Költség[[#This Row],[Becsült]], "") -> 200.00 Ft | I8: =IFERROR(Költség[[#This Row],[Mennyiség]]*Költség[[#This Row],[Tényleges]], "") -> 219.00 Ft | J8: =IFERROR(Költség[[#This Row],[Becsült ]]-Költség[[#This Row],[Tényleges ]], "") -> -19.00 Ft
B9: Szekrények | C9: Orvosi szekrény, 60 cm, luxus | D9: 1 | E9: 200.00 Ft | F9: 215.00 Ft | G9: =IFERROR(Költség[[#This Row],[Becsült]]-Költség[[#This Row],[Tényleges]], "") -> -15.00 Ft | H9: =IFERROR(Költség[[#This Row],[Mennyiség]]*Költség[[#This Row],[Becsült]], "") -> 200.00 Ft | I9: =IFERROR(Költség[[#This Row],[Mennyiség]]*Költség[[#This Row],[Tényleges]], "") -> 215.00 Ft | J9: =IFERROR(Költség[[#This Row],[Becsült ]]-Költség[[#This Row],[Tényleges ]], "") -> -15.00 Ft
B10: Szekrények | C10: Öltözőasztal modul, 75 cm, normál kivitelű | D10: 2 | E10: 100.00 Ft | F10: 112.00 Ft | G10: =IFERROR(Költség[[#This Row],[Becsült]]-Költség[[#This Row],[Tényleges]], "") -> -12.00 Ft | H10: =IFERROR(Költség[[#This Row],[Mennyiség]]*Költség[[#This Row],[Becsült]], "") -> 200.00 Ft | I10: =IFERROR(Költség[[#This Row],[Mennyiség]]*Költség[[#This Row],[Tényleges]], "") -> 224.00 Ft | J10: =IFERROR(Költség[[#This Row],[Becsült ]]-Költség[[#This Row],[Tényleges ]], "") -> -24.00 Ft
B11: Munkalapok | C11: Kerámiacsempe, luxus (menny. m-ben) | D11: 5 | E11: 22.50 Ft | F11: 42.00 Ft | G11: =IFERROR(Költség[[#This Row],[Becsült]]-Költség[[#This Row],[Tényleges]], "") -> -19.50 Ft | H11: =IFERROR(Költség[[#This Row],[Mennyiség]]*Költség[[#This Row],[Becsült]], "") -> 112.50 Ft | I11: =IFERROR(Költség[[#This Row],[Mennyiség]]*Költség[[#This Row],[Tényleges]], "") -> 210.00 Ft | J11: =IFERROR(Költség[[#This Row],[Becsült ]]-Költség[[#This Row],[Tényleges ]], "") -> -97.50 Ft
B12: Csapok | C12: Csap, kád, normál kivitelű | D12: 1 | E12: 90.00 Ft | F12: 92.00 Ft | G12: =IFERROR(Költség[[#This Row],[Becsült]]-Költség[[#This Row],[Tényleges]], "") -> -2.00 Ft | H12: =IFERROR(Költség[[#This Row],[Mennyiség]]*Költség[[#This Row],[Becsült]], "") -> 90.00 Ft | I12: =IFERROR(Költség[[#This Row],[Mennyiség]]*Költség[[#This Row],[Tényleges]], "") -> 92.00 Ft | J12: =IFERROR(Költség[[#This Row],[Becsült ]]-Költség[[#This Row],[Tényleges ]], "") -> -2.00 Ft
B13: Csapok | C13: Csap, zuhany, egykaros, normál kivitelű) | D13: 1 | E13: 115.00 Ft | F13: 118.00 Ft | G13: =IFERROR(Költség[[#This Row],[Becsült]]-Költség[[#This Row],[Tényleges]], "") -> -3.00 Ft | H13: =IFERROR(Költség[[#This Row],[Mennyiség]]*Költség[[#This Row],[Becsült]], "") -> 115.00 Ft | I13: =IFERROR(Költség[[#This Row],[Mennyiség]]*Költség[[#This Row],[Tényleges]], "") -> 118.00 Ft | J13: =IFERROR(Költség[[#This Row],[Becsült ]]-Költség[[#This Row],[Tényleges ]], "") -> -3.00 Ft
B14: Csapok | C14: Mosdó csaptelep, normál kivitelű | D14: 1 | E14: 95.00 Ft | F14: 97.00 Ft | G14: =IFERROR(Költség[[#This Row],[Becsült]]-Költség[[#This Row],[Tényleges]], "") -> -2.00 Ft | H14: =IFERROR(Költség[[#This Row],[Mennyiség]]*Költség[[#This Row],[Becsült]], "") -> 95.00 Ft | I14: =IFERROR(Költség[[#This Row],[Mennyiség]]*Költség[[#This Row],[Tényleges]], "") -> 97.00 Ft | J14: =IFERROR(Költség[[#This Row],[Becsült ]]-Költség[[#This Row],[Tényleges ]], "") -> -2.00 Ft
B15: Burkolás | C15: Kerámiacsempe, normál kivitelű (menny. n.m-ben) | D15: 35 | E15: 12.00 Ft | F15: 22.00 Ft | G15: =IFERROR(Költség[[#This Row],[Becsült]]-Költség[[#This Row],[Tényleges]], "") -> -10.00 Ft | H15: =IFERROR(Költség[[#This Row],[Mennyiség]]*Költség[[#This Row],[Becsült]], "") -> 420.00 Ft | I15: =IFERROR(Költség[[#This Row],[Mennyiség]]*Költség[[#This Row],[Tényleges]], "") -> 770.00 Ft | J15: =IFERROR(Költség[[#This Row],[Becsült ]]-Költség[[#This Row],[Tényleges ]], "") -> -350.00 Ft
B16: Hardver | C16: Törülközőtartó, normál kivitelű | D16: 2 | E16: 15.00 Ft | F16: 25.00 Ft | G16: =IFERROR(Költség[[#This Row],[Becsült]]-Költség[[#This Row],[Tényleges]], "") -> -10.00 Ft | H16: =IFERROR(Költség[[#This Row],[Mennyiség]]*Költség[[#This Row],[Becsült]], "") -> 30.00 Ft | I16: =IFERROR(Költség[[#This Row],[Mennyiség]]*Költség[[#This Row],[Tényleges]], "") -> 50.00 Ft | J16: =IFERROR(Költség[[#This Row],[Becsült ]]-Költség[[#This Row],[Tényleges ]], "") -> -20.00 Ft
B17: Hardver | C17: WC-papír tartó | D17: 1 | E17: 10.00 Ft | F17: 23.00 Ft | G17: =IFERROR(Költség[[#This Row],[Becsült]]-Költség[[#This Row],[Tényleges]], "") -> -13.00 Ft | H17: =IFERROR(Költség[[#This Row],[Mennyiség]]*Költség[[#This Row],[Becsült]], "") -> 10.00 Ft | I17: =IFERROR(Költség[[#This Row],[Mennyiség]]*Költség[[#This Row],[Tényleges]], "") -> 23.00 Ft | J17: =IFERROR(Költség[[#This Row],[Becsült ]]-Költség[[#This Row],[Tényleges ]], "") -> -13.00 Ft
B18: Világítás | C18: Süllyesztett lámpák, normál kivitelű | D18: 4 | E18: 25.00 Ft | F18: 44.00 Ft | G18: =IFERROR(Költség[[#This Row],[Becsült]]-Költség[[#This Row],[Tényleges]], "") -> -19.00 Ft | H18: =IFERROR(Költség[[#This Row],[Mennyiség]]*Költség[[#This Row],[Becsült]], "") -> 100.00 Ft | I18: =IFERROR(Költség[[#This Row],[Mennyiség]]*Költség[[#This Row],[Tényleges]], "") -> 176.00 Ft | J18: =IFERROR(Költség[[#This Row],[Becsült ]]-Költség[[#This Row],[Tényleges ]], "") -> -76.00 Ft
B19: Mosdókagylók | C19: WC, normál kivitelű | D19: 2 | E19: 60.00 Ft | F19: 73.00 Ft | G19: =IFERROR(Költség[[#This Row],[Becsült]]-Költség[[#This Row],[Tényleges]], "") -> -13.00 Ft | H19: =IFERROR(Költség[[#This Row],[Mennyiség]]*Költség[[#This Row],[Becsült]], "") -> 120.00 Ft | I19: =IFERROR(Költség[[#This Row],[Mennyiség]]*Költség[[#This Row],[Tényleges]], "") -> 146.00 Ft | J19: =IFERROR(Költség[[#This Row],[Becsült ]]-Költség[[#This Row],[Tényleges ]], "") -> -26.00 Ft
B20: Egyéb | D20: 1 | E20: 20.00 Ft | F20: 37.00 Ft | G20: =IFERROR(Költség[[#This Row],[Becsült]]-Költség[[#This Row],[Tényleges]], "") -> -17.00 Ft | H20: =IFERROR(Költség[[#This Row],[Mennyiség]]*Költség[[#This Row],[Becsült]], "") -> 20.00 Ft | I20: =IFERROR(Költség[[#This Row],[Mennyiség]]*Költség[[#This Row],[Tényleges]], "") -> 37.00 Ft | J20: =IFERROR(Költség[[#This Row],[Becsült ]]-Költség[[#This Row],[Tényleges ]], "") -> -17.00 Ft
B21: Részösszeg | E21: =SUBTOTAL(109,Költség[Becsült]) -> 1,464.50 Ft | F21: =SUBTOTAL(109,Költség[Tényleges]) -> 1,664.00 Ft | G21: =SUBTOTAL(109,Költség[Különbség]) -> -199.50 Ft | H21: =SUBTOTAL(109,Költség[[Becsült ]]) -> 2,212.50 Ft | I21: =SUBTOTAL(109,Költség[[Tényleges ]]) -> 2,922.00 Ft | J21: =SUBTOTAL(109,Költség[[Különbség ]]) -> -709.50 Ft
B22: Váratlan költségek (plusz 30% becsült) | E22: =IFERROR(Költség[[#Totals],[Becsült]]*0.3, "") -> 439.35 Ft | H22: =IFERROR(Költség[[#Totals],[Becsült ]]*0.3, "") -> 663.75 Ft
B23: Teljes költség | E23: =IFERROR(SUM(E21:E21), "") -> 1,464.50 Ft | H23: =IFERROR(SUM(Költség[[#Totals],[Becsült ]],Többlet), "") -> 2,876.25 Ft
